[Event "Titled Tuesday Blitz December 20 Early 2022"]
[White "queen_iryna"]
[Black "Andrei_Skvortsov"]
[WhiteElo "2354"]
[BlackElo "2717"]
[Result "0-1"]
[Round "01"]
[TimeControl "180+2"]
[Date "2022.12.20"]
[WhiteClock "0:00:20"]
[BlackClock "0:00:48"]

1. e4 {[%clk 0:02:59]}  d5 {[%clk 0:02:58]} 2. exd5 {[%clk 0:02:59]}  Qxd5 {[%clk 0:02:59]} 3. Nc3 {[%clk 0:02:59]}  Qe5+ {[%clk 0:02:59]} 4. Nge2 {[%clk 0:02:56]}  Nf6 {[%clk 0:02:51]} 5. d4 {[%clk 0:02:56]}  Qa5 {[%clk 0:02:51]} 6. Bd2 {[%clk 0:02:46]}  c6 {[%clk 0:02:50]} 7. Nf4 {[%clk 0:02:44]}  Qb6 {[%clk 0:02:49]} 8. Bc4 {[%clk 0:02:33]}  Qxd4 {[%clk 0:02:45]} 9. Bb3 {[%clk 0:02:28]}  Bg4 {[%clk 0:02:39]} 10. Nfe2 {[%clk 0:02:26]}  Qd6 {[%clk 0:02:33]} 11. O-O {[%clk 0:02:24]}  e6 {[%clk 0:02:32]} 12. f3 {[%clk 0:02:16]}  Bh5 {[%clk 0:02:30]} 13. Nf4 {[%clk 0:02:15]}  Bg6 {[%clk 0:02:26]} 14. Re1 {[%clk 0:02:08]}  Be7 {[%clk 0:02:24]} 15. Qe2 {[%clk 0:02:00]}  O-O {[%clk 0:02:14]} 16. Rad1 {[%clk 0:02:00]}  Qc5+ {[%clk 0:02:12]} 17. Be3 {[%clk 0:02:00]}  Qe5 {[%clk 0:02:10]} 18. Nxg6 {[%clk 0:01:55]}  hxg6 {[%clk 0:02:10]} 19. f4 {[%clk 0:01:52]}  Qa5 {[%clk 0:02:06]} 20. g4 {[%clk 0:01:30]}  Bc5 {[%clk 0:02:01]} 21. g5 {[%clk 0:01:26]}  Nh5 {[%clk 0:01:53]} 22. Kh1 {[%clk 0:01:20]}  Na6 {[%clk 0:01:46]} 23. Rd7 {[%clk 0:01:10]}  Bxe3 {[%clk 0:01:44]} 24. Qxe3 {[%clk 0:01:11]}  Nc5 {[%clk 0:01:44]} 25. Rd4 {[%clk 0:01:01]}  Rad8 {[%clk 0:01:36]} 26. Red1 {[%clk 0:00:57]}  Rxd4 {[%clk 0:01:28]} 27. Qxd4 {[%clk 0:00:58]}  Nxb3 {[%clk 0:01:28]} 28. axb3 {[%clk 0:00:57]}  Qf5 {[%clk 0:01:27]} 29. Ne2 {[%clk 0:00:45]}  Qxc2 {[%clk 0:01:25]} 30. Ng3 {[%clk 0:00:39]}  Nxf4 {[%clk 0:00:59]} 31. Rd2 {[%clk 0:00:35]}  e5 {[%clk 0:00:56]} 32. Qd6 {[%clk 0:00:22]}  Qxb3 {[%clk 0:00:48]} 33. Qxe5 {[%clk 0:00:20]}  Qf3+ {[%clk 0:00:48]} 0-1


[Site "https://www.chess.com"]

[Event "Titled Tuesday Blitz December 20 Early 2022"]
[White "santosalberto1987"]
[Black "Oleksandr_Bortnyk"]
[WhiteElo "2495"]
[BlackElo "2984"]
[Result "0-1"]
[Round "01"]
[TimeControl "180+2"]
[Date "2022.12.20"]
[WhiteClock "0:00:03"]
[BlackClock "0:00:12"]

1. d4 {[%clk 0:03:00]}  d6 {[%clk 0:02:59]} 2. Nf3 {[%clk 0:02:59]}  Nf6 {[%clk 0:02:58]} 3. Bf4 {[%clk 0:02:58]}  b6 {[%clk 0:02:53]} 4. h3 {[%clk 0:02:56]}  Bb7 {[%clk 0:02:54]} 5. e3 {[%clk 0:02:56]}  Nbd7 {[%clk 0:02:53]} 6. Be2 {[%clk 0:02:56]}  e6 {[%clk 0:02:47]} 7. O-O {[%clk 0:02:54]}  Be7 {[%clk 0:02:47]} 8. Nbd2 {[%clk 0:02:53]}  h6 {[%clk 0:02:46]} 9. c3 {[%clk 0:02:52]}  g5 {[%clk 0:02:46]} 10. Bh2 {[%clk 0:02:51]}  g4 {[%clk 0:02:47]} 11. hxg4 {[%clk 0:02:51]}  Nxg4 {[%clk 0:02:47]} 12. Bg3 {[%clk 0:02:51]}  Rg8 {[%clk 0:02:40]} 13. a4 {[%clk 0:02:38]}  Nxe3 {[%clk 0:02:38]} 14. fxe3 {[%clk 0:02:38]}  Rxg3 {[%clk 0:02:38]} 15. a5 {[%clk 0:02:37]}  Bg5 {[%clk 0:02:27]} 16. e4 {[%clk 0:02:21]}  Be3+ {[%clk 0:02:16]} 17. Kh2 {[%clk 0:02:21]}  Bf4 {[%clk 0:01:52]} 18. Kg1 {[%clk 0:02:17]}  Nf6 {[%clk 0:01:52]} 19. Bd3 {[%clk 0:02:03]}  Ng4 {[%clk 0:01:42]} 20. Qe2 {[%clk 0:01:43]}  Qf6 {[%clk 0:01:27]} 21. axb6 {[%clk 0:01:34]}  Be3+ {[%clk 0:01:17]} 22. Kh1 {[%clk 0:01:27]}  Qg6 {[%clk 0:01:17]} 23. Nh2 {[%clk 0:01:13]}  Qh5 {[%clk 0:01:16]} 24. Nf3 {[%clk 0:01:12]}  cxb6 {[%clk 0:00:52]} 25. d5 {[%clk 0:00:32]}  exd5 {[%clk 0:00:48]} 26. exd5 {[%clk 0:00:32]}  Bxd5 {[%clk 0:00:46]} 27. Rae1 {[%clk 0:00:28]}  Kf8 {[%clk 0:00:44]} 28. Qc2 {[%clk 0:00:05]}  Re8 {[%clk 0:00:16]} 29. Re2 {[%clk 0:00:04]}  Nxh2 {[%clk 0:00:11]} 30. Nxh2 {[%clk 0:00:03]}  Rh3 {[%clk 0:00:12]} 0-1


[Site "https://www.chess.com"]

[Event "Titled Tuesday Blitz December 20 Early 2022"]
[White "soloderisas"]
[Black "Sunny_Star"]
[WhiteElo "2594"]
[BlackElo "2241"]
[Result "1-0"]
[Round "01"]
[TimeControl "180+2"]
[Date "2022.12.20"]
[WhiteClock "0:01:17"]
[BlackClock "0:00:03"]

1. d4 {[%clk 0:03:00]}  Nf6 {[%clk 0:02:57]} 2. Nf3 {[%clk 0:03:01]}  e6 {[%clk 0:02:57]} 3. Bf4 {[%clk 0:03:02]}  d5 {[%clk 0:02:57]} 4. e3 {[%clk 0:03:02]}  Bd6 {[%clk 0:02:57]} 5. Bg3 {[%clk 0:03:02]}  b6 {[%clk 0:02:54]} 6. Nbd2 {[%clk 0:03:02]}  Bb7 {[%clk 0:02:54]} 7. Ne5 {[%clk 0:03:02]}  O-O {[%clk 0:02:52]} 8. Bd3 {[%clk 0:03:01]}  c5 {[%clk 0:02:51]} 9. c3 {[%clk 0:03:00]}  Ne4 {[%clk 0:02:44]} 10. Nxe4 {[%clk 0:02:57]}  dxe4 {[%clk 0:02:43]} 11. Bc2 {[%clk 0:02:55]}  Qc7 {[%clk 0:02:21]} 12. O-O {[%clk 0:02:51]}  f6 {[%clk 0:02:13]} 13. Nc4 {[%clk 0:02:49]}  Bxg3 {[%clk 0:02:12]} 14. hxg3 {[%clk 0:02:49]}  b5 {[%clk 0:02:07]} 15. Nd2 {[%clk 0:02:46]}  f5 {[%clk 0:02:07]} 16. a4 {[%clk 0:02:41]}  a6 {[%clk 0:02:06]} 17. dxc5 {[%clk 0:02:39]}  Qxc5 {[%clk 0:02:05]} 18. Nb3 {[%clk 0:02:39]}  Qb6 {[%clk 0:01:57]} 19. Qd4 {[%clk 0:02:37]}  Qc7 {[%clk 0:01:46]} 20. Qc5 {[%clk 0:02:27]}  Qf7 {[%clk 0:00:57]} 21. axb5 {[%clk 0:02:15]}  axb5 {[%clk 0:00:47]} 22. Rxa8 {[%clk 0:02:15]}  Bxa8 {[%clk 0:00:47]} 23. Ra1 {[%clk 0:02:11]}  Bc6 {[%clk 0:00:42]} 24. Ra7 {[%clk 0:02:10]}  Qe8 {[%clk 0:00:26]} 25. Nd4 {[%clk 0:02:00]}  Bd7 {[%clk 0:00:24]} 26. Bb3 {[%clk 0:01:56]}  Kh8 {[%clk 0:00:18]} 27. Qd6 {[%clk 0:01:49]}  e5 {[%clk 0:00:17]} 28. Nc2 {[%clk 0:01:38]}  f4 {[%clk 0:00:07]} 29. Bd5 {[%clk 0:01:25]}  Rf6 {[%clk 0:00:06]} 30. Qc7 {[%clk 0:01:22]}  fxg3 {[%clk 0:00:05]} 31. fxg3 {[%clk 0:01:22]}  Qf8 {[%clk 0:00:04]} 32. Ra8 {[%clk 0:01:17]}  Rf1+ {[%clk 0:00:03]} 33. Kh2 {[%clk 0:01:17]} 1-0


[Site "https://www.chess.com"]

[Event "Titled Tuesday Blitz December 20 Early 2022"]
[White "talaicito"]
[Black "Karttunen, Mika"]
[BlackFideId "502081"]
[WhiteElo "2293"]
[BlackElo "2490"]
[Result "1/2-1/2"]
[Round "01"]
[TimeControl "180+2"]
[Date "2022.12.20"]
[WhiteClock "0:00:06"]
[BlackClock "0:00:09"]

1. d4 {[%clk 0:02:41]}  d5 {[%clk 0:02:59]} 2. Bf4 {[%clk 0:02:40]}  e6 {[%clk 0:02:59]} 3. Nc3 {[%clk 0:02:39]}  Bd6 {[%clk 0:02:59]} 4. e3 {[%clk 0:02:40]}  Bxf4 {[%clk 0:02:58]} 5. exf4 {[%clk 0:02:41]}  Nf6 {[%clk 0:02:58]} 6. Nf3 {[%clk 0:02:41]}  c5 {[%clk 0:02:57]} 7. dxc5 {[%clk 0:02:39]}  O-O {[%clk 0:02:57]} 8. Bd3 {[%clk 0:02:38]}  Qc7 {[%clk 0:02:55]} 9. Ne5 {[%clk 0:02:37]}  Nbd7 {[%clk 0:02:53]} 10. Nb5 {[%clk 0:02:27]}  Qb8 {[%clk 0:02:52]} 11. Nd6 {[%clk 0:02:22]}  Nxc5 {[%clk 0:02:48]} 12. Nxc8 {[%clk 0:02:03]}  Qxc8 {[%clk 0:02:38]} 13. O-O {[%clk 0:02:02]}  Qc7 {[%clk 0:02:30]} 14. Re1 {[%clk 0:02:01]}  Rac8 {[%clk 0:02:30]} 15. Bf1 {[%clk 0:01:58]}  Na4 {[%clk 0:02:24]} 16. c3 {[%clk 0:01:31]}  Nxb2 {[%clk 0:02:23]} 17. Qb3 {[%clk 0:01:32]}  Nc4 {[%clk 0:02:22]} 18. Bxc4 {[%clk 0:01:05]}  dxc4 {[%clk 0:02:21]} 19. Qc2 {[%clk 0:00:47]}  Nd5 {[%clk 0:02:15]} 20. f5 {[%clk 0:00:43]}  exf5 {[%clk 0:01:52]} 21. Qxf5 {[%clk 0:00:39]}  Nf6 {[%clk 0:01:45]} 22. Re3 {[%clk 0:00:27]}  Rfe8 {[%clk 0:01:12]} 23. Rae1 {[%clk 0:00:27]}  Rcd8 {[%clk 0:01:05]} 24. Ng4 {[%clk 0:00:20]}  Rxe3 {[%clk 0:00:48]} 25. Nxf6+ {[%clk 0:00:20]}  gxf6 {[%clk 0:00:48]} 26. fxe3 {[%clk 0:00:20]}  Rd6 {[%clk 0:00:38]} 27. Rf1 {[%clk 0:00:18]}  Re6 {[%clk 0:00:37]} 28. Rf3 {[%clk 0:00:15]}  Qe5 {[%clk 0:00:22]} 29. Qg4+ {[%clk 0:00:15]}  Kf8 {[%clk 0:00:22]} 30. Qxc4 {[%clk 0:00:15]}  Rc6 {[%clk 0:00:22]} 31. Qb4+ {[%clk 0:00:14]}  Qe7 {[%clk 0:00:19]} 32. Qd4 {[%clk 0:00:10]}  Rd6 {[%clk 0:00:16]} 33. Qxa7 {[%clk 0:00:10]}  Rd1+ {[%clk 0:00:16]} 34. Kf2 {[%clk 0:00:10]}  Rd2+ {[%clk 0:00:16]} 35. Ke1 {[%clk 0:00:09]}  Qd6 {[%clk 0:00:15]} 36. Qa8+ {[%clk 0:00:08]}  Ke7 {[%clk 0:00:10]} 37. Qxb7+ {[%clk 0:00:06]}  Kd8 {[%clk 0:00:08]} 38. Qa8+ {[%clk 0:00:05]}  Kc7 {[%clk 0:00:09]} 39. Qa7+ {[%clk 0:00:05]}  Kd8 {[%clk 0:00:09]} 40. Qa8+ {[%clk 0:00:05]}  Ke7 {[%clk 0:00:10]} 41. Qb7+ {[%clk 0:00:05]}  Kf8 {[%clk 0:00:10]} 42. Qc8+ {[%clk 0:00:06]}  Ke7 {[%clk 0:00:09]} 43. Qb7+ {[%clk 0:00:06]} 1/2-1/2


[Site "https://www.chess.com"]

[Event "Titled Tuesday Blitz December 20 Early 2022"]
[White "vladoboch"]
[Black "Ibarra Jerez, Jose Carlos"]
[BlackFideId "2226332"]
[WhiteElo "2445"]
[BlackElo "2563"]
[Result "0-1"]
[Round "01"]
[TimeControl "180+2"]
[Date "2022.12.20"]
[WhiteClock "0:00:01"]
[BlackClock "0:00:51"]

1. e4 {[%clk 0:02:52]}  c5 {[%clk 0:02:57]} 2. Nf3 {[%clk 0:02:52]}  Nc6 {[%clk 0:02:55]} 3. d4 {[%clk 0:02:53]}  cxd4 {[%clk 0:02:55]} 4. Nxd4 {[%clk 0:02:53]}  e5 {[%clk 0:02:55]} 5. Nb5 {[%clk 0:02:53]}  d6 {[%clk 0:02:55]} 6. N1c3 {[%clk 0:02:48]}  a6 {[%clk 0:02:50]} 7. Na3 {[%clk 0:02:49]}  Be6 {[%clk 0:02:50]} 8. Nc4 {[%clk 0:02:46]}  Rb8 {[%clk 0:02:50]} 9. Ne3 {[%clk 0:02:42]}  Nf6 {[%clk 0:02:47]} 10. Be2 {[%clk 0:02:40]}  Be7 {[%clk 0:02:45]} 11. O-O {[%clk 0:02:41]}  O-O {[%clk 0:02:43]} 12. Ned5 {[%clk 0:02:41]}  Nd4 {[%clk 0:02:42]} 13. Be3 {[%clk 0:02:10]}  Nxe2+ {[%clk 0:02:41]} 14. Qxe2 {[%clk 0:02:08]}  Nxd5 {[%clk 0:02:39]} 15. Nxd5 {[%clk 0:01:51]}  Bxd5 {[%clk 0:02:32]} 16. exd5 {[%clk 0:01:52]}  f5 {[%clk 0:02:33]} 17. f4 {[%clk 0:01:51]}  Bf6 {[%clk 0:02:30]} 18. fxe5 {[%clk 0:01:32]}  Bxe5 {[%clk 0:02:30]} 19. c3 {[%clk 0:01:02]}  Qh4 {[%clk 0:02:28]} 20. g3 {[%clk 0:00:44]}  Bxg3 {[%clk 0:02:12]} 21. hxg3 {[%clk 0:00:45]}  Qxg3+ {[%clk 0:02:13]} 22. Kh1 {[%clk 0:00:45]}  Rbe8 {[%clk 0:02:13]} 23. Rf3 {[%clk 0:00:43]}  Qh4+ {[%clk 0:02:03]} 24. Qh2 {[%clk 0:00:43]}  Qe4 {[%clk 0:02:04]} 25. Rf1 {[%clk 0:00:41]}  Qxd5 {[%clk 0:01:59]} 26. Kg1 {[%clk 0:00:36]}  Re4 {[%clk 0:01:52]} 27. Bf4 {[%clk 0:00:25]}  Rf6 {[%clk 0:01:45]} 28. Kh1 {[%clk 0:00:11]}  h6 {[%clk 0:01:37]} 29. Qg2 {[%clk 0:00:11]}  Kh7 {[%clk 0:01:32]} 30. Rg3 {[%clk 0:00:10]}  g5 {[%clk 0:01:28]} 31. Bc1 {[%clk 0:00:10]}  f4 {[%clk 0:01:25]} 32. Rh3 {[%clk 0:00:06]}  Qe6 {[%clk 0:01:22]} 33. Rhf3 {[%clk 0:00:02]}  d5 {[%clk 0:01:18]} 34. Qh2 {[%clk 0:00:02]}  b5 {[%clk 0:01:15]} 35. Qc2 {[%clk 0:00:02]}  Qf5 {[%clk 0:01:12]} 36. Qg2 {[%clk 0:00:02]}  Qg6 {[%clk 0:01:10]} 37. Rh3 {[%clk 0:00:03]}  g4 {[%clk 0:01:09]} 38. Rh4 {[%clk 0:00:03]}  h5 {[%clk 0:01:07]} 39. Qh2 {[%clk 0:00:03]}  g3 {[%clk 0:01:00]} 40. Rxh5+ {[%clk 0:00:03]}  Kg7 {[%clk 0:01:01]} 41. Qh3 {[%clk 0:00:03]}  f3 {[%clk 0:00:55]} 42. Rh4 {[%clk 0:00:02]}  g2+ {[%clk 0:00:55]} 43. Kg1 {[%clk 0:00:02]}  f2+ {[%clk 0:00:51]} 44. Rxf2 {[%clk 0:00:01]}  Re1+ {[%clk 0:00:51]} 0-1


[Site "https://www.chess.com"]

[Event "Titled Tuesday Blitz December 20 Early 2022"]
[White "APOKALIPSA13"]
[Black "Steegersee"]
[WhiteElo "2220"]
[BlackElo "2425"]
[Result "0-1"]
[Round "02"]
[TimeControl "180+2"]
[Date "2022.12.20"]
[WhiteClock "0:00:13"]
[BlackClock "0:00:48"]

1. e4 {[%clk 0:02:38]}  c5 {[%clk 0:03:00]} 2. Be2 {[%clk 0:02:32]}  Nc6 {[%clk 0:02:58]} 3. f4 {[%clk 0:02:30]}  g6 {[%clk 0:02:57]} 4. Nf3 {[%clk 0:02:30]}  Bg7 {[%clk 0:02:52]} 5. c3 {[%clk 0:02:30]}  d6 {[%clk 0:02:52]} 6. O-O {[%clk 0:02:30]}  Nf6 {[%clk 0:02:51]} 7. d3 {[%clk 0:02:28]}  O-O {[%clk 0:02:50]} 8. Qe1 {[%clk 0:02:24]}  e6 {[%clk 0:02:39]} 9. Kh1 {[%clk 0:02:22]}  Nd7 {[%clk 0:02:37]} 10. Be3 {[%clk 0:02:06]}  b5 {[%clk 0:02:05]} 11. a3 {[%clk 0:01:56]}  Rb8 {[%clk 0:02:01]} 12. Nbd2 {[%clk 0:01:55]}  a5 {[%clk 0:01:59]} 13. Rc1 {[%clk 0:01:50]}  f5 {[%clk 0:01:57]} 14. Qg3 {[%clk 0:01:45]}  Nf6 {[%clk 0:01:54]} 15. Qh3 {[%clk 0:01:44]}  h6 {[%clk 0:01:51]} 16. Rfe1 {[%clk 0:01:37]}  Ng4 {[%clk 0:01:44]} 17. Bg1 {[%clk 0:01:36]}  e5 {[%clk 0:01:44]} 18. exf5 {[%clk 0:01:07]}  Bxf5 {[%clk 0:01:42]} 19. Nh4 {[%clk 0:01:07]}  Nf2+ {[%clk 0:01:39]} 20. Bxf2 {[%clk 0:01:06]}  Bxh3 {[%clk 0:01:40]} 21. gxh3 {[%clk 0:01:06]}  Rxf4 {[%clk 0:01:41]} 22. Ndf3 {[%clk 0:01:02]}  Qf6 {[%clk 0:01:35]} 23. Bg3 {[%clk 0:01:01]}  g5 {[%clk 0:01:23]} 24. Rf1 {[%clk 0:00:39]}  gxh4 {[%clk 0:01:22]} 25. Nxh4 {[%clk 0:00:35]}  Rxh4 {[%clk 0:01:10]} 26. Rxf6 {[%clk 0:00:33]}  Bxf6 {[%clk 0:01:11]} 27. Bxh4 {[%clk 0:00:32]}  Bxh4 {[%clk 0:01:12]} 28. Bf3 {[%clk 0:00:33]}  Ne7 {[%clk 0:01:11]} 29. Rg1+ {[%clk 0:00:32]}  Kh8 {[%clk 0:01:10]} 30. Rg4 {[%clk 0:00:31]}  Bf6 {[%clk 0:01:09]} 31. h4 {[%clk 0:00:31]}  Bg7 {[%clk 0:01:08]} 32. h3 {[%clk 0:00:30]}  Rf8 {[%clk 0:01:07]} 33. Kg2 {[%clk 0:00:30]}  Rf4 {[%clk 0:01:06]} 34. Be2 {[%clk 0:00:24]}  Rxg4+ {[%clk 0:01:04]} 35. hxg4 {[%clk 0:00:25]}  Nd5 {[%clk 0:01:02]} 36. Kf3 {[%clk 0:00:23]}  Nf4 {[%clk 0:01:03]} 37. Bf1 {[%clk 0:00:23]}  d5 {[%clk 0:01:03]} 38. g5 {[%clk 0:00:21]}  hxg5 {[%clk 0:01:02]} 39. hxg5 {[%clk 0:00:22]}  b4 {[%clk 0:00:58]} 40. axb4 {[%clk 0:00:22]}  axb4 {[%clk 0:00:59]} 41. Kg4 {[%clk 0:00:21]}  Kg8 {[%clk 0:00:57]} 42. Kf5 {[%clk 0:00:20]}  Kf7 {[%clk 0:00:58]} 43. cxb4 {[%clk 0:00:18]}  cxb4 {[%clk 0:00:56]} 44. b3 {[%clk 0:00:18]}  Ne6 {[%clk 0:00:54]} 45. Bg2 {[%clk 0:00:16]}  Nd4+ {[%clk 0:00:55]} 46. Kg4 {[%clk 0:00:15]}  Ke6 {[%clk 0:00:55]} 47. Kh5 {[%clk 0:00:14]}  Nxb3 {[%clk 0:00:56]} 48. Kg6 {[%clk 0:00:14]}  Bf8 {[%clk 0:00:55]} 49. Kh7 {[%clk 0:00:14]}  Nd4 {[%clk 0:00:52]} 50. g6 {[%clk 0:00:14]}  b3 {[%clk 0:00:53]} 51. Bh3+ {[%clk 0:00:13]}  Kf6 {[%clk 0:00:52]} 52. Bg2 {[%clk 0:00:12]}  b2 {[%clk 0:00:52]} 53. Bxd5 {[%clk 0:00:13]}  b1=Q {[%clk 0:00:52]} 54. Be4 {[%clk 0:00:14]}  Qg1 {[%clk 0:00:52]} 55. Kg8 {[%clk 0:00:14]}  Bg7 {[%clk 0:00:51]} 56. Bf3 {[%clk 0:00:13]}  Nxf3 {[%clk 0:00:49]} 57. d4 {[%clk 0:00:13]}  Qxd4 {[%clk 0:00:47]} 58. Kh7 {[%clk 0:00:12]}  Qh4+ {[%clk 0:00:48]} 59. Kg8 {[%clk 0:00:13]}  Qh8# {[%clk 0:00:48]} 0-1


[Site "https://www.chess.com"]

[Event "Titled Tuesday Blitz December 20 Early 2022"]
[White "Aleksandar-Topalov"]
[Black "Suduvasachmatai"]
[WhiteElo "2401"]
[BlackElo "2110"]
[Result "1-0"]
[Round "02"]
[TimeControl "180+2"]
[Date "2022.12.20"]
[WhiteClock "0:00:04"]
[BlackClock "0:00:03"]

1. b3 {[%clk 0:03:00]}  e5 {[%clk 0:02:57]} 2. Bb2 {[%clk 0:03:01]}  d6 {[%clk 0:02:57]} 3. d4 {[%clk 0:03:00]}  exd4 {[%clk 0:02:55]} 4. Qxd4 {[%clk 0:02:59]}  Nc6 {[%clk 0:02:55]} 5. Qf4 {[%clk 0:02:59]}  Be6 {[%clk 0:02:47]} 6. Nf3 {[%clk 0:02:58]}  Nge7 {[%clk 0:02:47]} 7. Nc3 {[%clk 0:02:57]}  Ng6 {[%clk 0:02:47]} 8. Qg3 {[%clk 0:02:57]}  Be7 {[%clk 0:02:46]} 9. O-O-O {[%clk 0:02:50]}  O-O {[%clk 0:02:46]} 10. h4 {[%clk 0:02:50]}  f5 {[%clk 0:02:37]} 11. e3 {[%clk 0:02:45]}  Bf6 {[%clk 0:02:31]} 12. h5 {[%clk 0:02:42]}  Nge5 {[%clk 0:02:31]} 13. Be2 {[%clk 0:02:26]}  Nxf3 {[%clk 0:02:03]} 14. gxf3 {[%clk 0:02:26]}  Be5 {[%clk 0:02:03]} 15. f4 {[%clk 0:02:25]}  Bf6 {[%clk 0:02:00]} 16. Rdg1 {[%clk 0:02:23]}  d5 {[%clk 0:01:53]} 17. Bf3 {[%clk 0:01:50]}  d4 {[%clk 0:01:51]} 18. Nb5 {[%clk 0:01:36]}  dxe3 {[%clk 0:01:46]} 19. fxe3 {[%clk 0:01:36]}  Bxb2+ {[%clk 0:01:46]} 20. Kxb2 {[%clk 0:01:37]}  Qf6+ {[%clk 0:01:45]} 21. Kb1 {[%clk 0:01:37]}  Rad8 {[%clk 0:01:24]} 22. Nxc7 {[%clk 0:01:15]}  Bf7 {[%clk 0:01:22]} 23. Nb5 {[%clk 0:01:10]}  a6 {[%clk 0:01:19]} 24. Bxc6 {[%clk 0:01:06]}  bxc6 {[%clk 0:01:11]} 25. Nd4 {[%clk 0:01:06]}  Bd5 {[%clk 0:01:01]} 26. Rh2 {[%clk 0:00:55]}  Rd7 {[%clk 0:00:58]} 27. Qg5 {[%clk 0:00:42]}  Qf7 {[%clk 0:00:39]} 28. Ne2 {[%clk 0:00:27]}  Be4 {[%clk 0:00:37]} 29. Nc3 {[%clk 0:00:27]}  Qe6 {[%clk 0:00:27]} 30. Kb2 {[%clk 0:00:20]}  c5 {[%clk 0:00:22]} 31. Nxe4 {[%clk 0:00:13]}  Qxe4 {[%clk 0:00:22]} 32. h6 {[%clk 0:00:14]}  Qxe3 {[%clk 0:00:15]} 33. hxg7 {[%clk 0:00:10]}  Rff7 {[%clk 0:00:13]} 34. Rxh7 {[%clk 0:00:09]}  Qd4+ {[%clk 0:00:11]} 35. c3 {[%clk 0:00:07]}  Qd2+ {[%clk 0:00:10]} 36. Ka3 {[%clk 0:00:07]}  Rxg7 {[%clk 0:00:02]} 37. Rxg7+ {[%clk 0:00:07]}  Kf8 {[%clk 0:00:03]} 38. Qf6+ {[%clk 0:00:04]}  Ke8 {[%clk 0:00:03]} 39. Rg8# {[%clk 0:00:04]} 1-0


[Site "https://www.chess.com"]

[Event "Titled Tuesday Blitz December 20 Early 2022"]
[White "Andrei_Skvortsov"]
[Black "Toh, Terry"]
[BlackFideId "5800323"]
[WhiteElo "2717"]
[BlackElo "2394"]
[Result "1/2-1/2"]
[Round "02"]
[TimeControl "180+2"]
[Date "2022.12.20"]
[WhiteClock "0:00:12"]
[BlackClock "0:01:35"]

1. d4 {[%clk 0:03:00]}  Nf6 {[%clk 0:02:59]} 2. c4 {[%clk 0:02:55]}  g6 {[%clk 0:02:59]} 3. Nc3 {[%clk 0:02:51]}  d5 {[%clk 0:02:58]} 4. cxd5 {[%clk 0:02:44]}  Nxd5 {[%clk 0:02:57]} 5. Na4 {[%clk 0:02:45]}  Bg7 {[%clk 0:02:56]} 6. Nf3 {[%clk 0:02:29]}  Nf6 {[%clk 0:02:56]} 7. e3 {[%clk 0:02:21]}  O-O {[%clk 0:02:55]} 8. Bd3 {[%clk 0:02:20]}  Bd7 {[%clk 0:02:54]} 9. Nc5 {[%clk 0:02:19]}  Bc6 {[%clk 0:02:54]} 10. O-O {[%clk 0:02:19]}  b6 {[%clk 0:02:55]} 11. Nb3 {[%clk 0:02:19]}  Bb7 {[%clk 0:02:55]} 12. a4 {[%clk 0:02:16]}  a5 {[%clk 0:02:53]} 13. Nbd2 {[%clk 0:02:17]}  Na6 {[%clk 0:02:53]} 14. b3 {[%clk 0:02:16]}  c5 {[%clk 0:02:53]} 15. Bb2 {[%clk 0:02:13]}  Nb4 {[%clk 0:02:53]} 16. Bc4 {[%clk 0:02:09]}  Rc8 {[%clk 0:02:52]} 17. dxc5 {[%clk 0:02:06]}  bxc5 {[%clk 0:02:45]} 18. Qe2 {[%clk 0:02:05]}  Qb6 {[%clk 0:02:42]} 19. Rfd1 {[%clk 0:02:00]}  e6 {[%clk 0:02:42]} 20. Nf1 {[%clk 0:01:59]}  Rfd8 {[%clk 0:02:42]} 21. Rxd8+ {[%clk 0:01:57]}  Rxd8 {[%clk 0:02:42]} 22. Rd1 {[%clk 0:01:57]}  Rd6 {[%clk 0:02:42]} 23. Be5 {[%clk 0:01:54]}  Rxd1 {[%clk 0:02:41]} 24. Qxd1 {[%clk 0:01:54]}  h6 {[%clk 0:02:41]} 25. Ng3 {[%clk 0:01:51]}  Bd5 {[%clk 0:02:39]} 26. Bxf6 {[%clk 0:01:33]}  Bxf6 {[%clk 0:02:38]} 27. e4 {[%clk 0:01:30]}  Bxc4 {[%clk 0:02:38]} 28. bxc4 {[%clk 0:01:31]}  Nc6 {[%clk 0:02:37]} 29. h4 {[%clk 0:01:28]}  Nd4 {[%clk 0:02:37]} 30. Nxd4 {[%clk 0:01:28]}  cxd4 {[%clk 0:02:37]} 31. h5 {[%clk 0:01:12]}  Qc5 {[%clk 0:02:30]} 32. hxg6 {[%clk 0:01:12]}  fxg6 {[%clk 0:02:31]} 33. Qc2 {[%clk 0:01:05]}  e5 {[%clk 0:02:26]} 34. Ne2 {[%clk 0:01:05]}  Bg5 {[%clk 0:02:24]} 35. g3 {[%clk 0:01:04]}  Qb4 {[%clk 0:02:23]} 36. f4 {[%clk 0:01:04]}  Qe1+ {[%clk 0:02:20]} 37. Kg2 {[%clk 0:01:03]}  exf4 {[%clk 0:02:19]} 38. gxf4 {[%clk 0:01:03]}  Bh4 {[%clk 0:02:19]} 39. Nxd4 {[%clk 0:00:45]}  Qe3 {[%clk 0:02:19]} 40. Nf3 {[%clk 0:00:41]}  Qxf4 {[%clk 0:02:15]} 41. Nxh4 {[%clk 0:00:41]}  Qg4+ {[%clk 0:02:13]} 42. Kf1 {[%clk 0:00:39]}  Qxh4 {[%clk 0:02:12]} 43. Qg2 {[%clk 0:00:30]}  Qf4+ {[%clk 0:02:10]} 44. Ke2 {[%clk 0:00:30]}  Kg7 {[%clk 0:02:08]} 45. Kd3 {[%clk 0:00:28]}  Qd6+ {[%clk 0:02:08]} 46. Kc2 {[%clk 0:00:22]}  Qb4 {[%clk 0:02:06]} 47. Qg4 {[%clk 0:00:16]}  Qxc4+ {[%clk 0:02:04]} 48. Kd2 {[%clk 0:00:17]}  Qxa4 {[%clk 0:02:04]} 49. Qe6 {[%clk 0:00:14]}  Qb4+ {[%clk 0:01:56]} 50. Kc2 {[%clk 0:00:13]}  a4 {[%clk 0:01:54]} 51. Qe5+ {[%clk 0:00:14]}  Kf7 {[%clk 0:01:53]} 52. Qd5+ {[%clk 0:00:14]}  Kf6 {[%clk 0:01:52]} 53. e5+ {[%clk 0:00:15]}  Kf5 {[%clk 0:01:45]} 54. e6+ {[%clk 0:00:10]}  Kf6 {[%clk 0:01:45]} 55. Qd8+ {[%clk 0:00:10]}  Kxe6 {[%clk 0:01:43]} 56. Qe8+ {[%clk 0:00:10]}  Kd5 {[%clk 0:01:43]} 57. Qf7+ {[%clk 0:00:10]}  Kc5 {[%clk 0:01:37]} 58. Qe7+ {[%clk 0:00:09]}  Kb5 {[%clk 0:01:37]} 59. Qb7+ {[%clk 0:00:10]}  Kc4 {[%clk 0:01:37]} 60. Qe4+ {[%clk 0:00:10]}  Kb5 {[%clk 0:01:36]} 61. Qb7+ {[%clk 0:00:10]}  Ka5 {[%clk 0:01:35]} 62. Qa7+ {[%clk 0:00:11]}  Kb5 {[%clk 0:01:35]} 63. Qb7+ {[%clk 0:00:12]} 1/2-1/2


[Site "https://www.chess.com"]